[Event "*** SCC Grand Prix: Titled Tuesday Blitz"]
[Site "Chess.com"]
[Date "2020.07.07"]
[Round "5"]
[White "DortmundCity"]
[Black "A-Fier"]
[Result "1-0"]
[WhiteElo "2613"]
[BlackElo "2757"]
[TimeControl "180+1"]
[EndTime "10:55:26 PDT"]
[Termination "DortmundCity won by checkmate"]

1. e4 {[%clk 0:02:55]} 1... c5 {[%clk 0:02:59.9]} 2. f4 {[%clk 0:02:55]} 2...
Nc6 {[%clk 0:03:00.4]} 3. Nf3 {[%clk 0:02:54.9]} 3... d5 {[%clk 0:03:00.1]} 4.
exd5 {[%clk 0:02:53.2]} 4... Qxd5 {[%clk 0:03:00.7]} 5. Nc3 {[%clk 0:02:53.8]}
5... Qd8 {[%clk 0:03:01.3]} 6. Bb5 {[%clk 0:02:47.3]} 6... Bd7 {[%clk
0:02:59.9]} 7. d4 {[%clk 0:02:45.5]} 7... cxd4 {[%clk 0:02:58.6]} 8. Nxd4 {[%clk
0:02:39.1]} 8... Nf6 {[%clk 0:02:45]} 9. Be3 {[%clk 0:02:32.8]} 9... e6 {[%clk
0:02:43.7]} 10. Qe2 {[%clk 0:02:31]} 10... Qa5 {[%clk 0:02:42.2]} 11. O-O-O
{[%clk 0:02:27.5]} 11... Bb4 {[%clk 0:02:40.5]} 12. Nb3 {[%clk 0:02:13.8]} 12...
Qc7 {[%clk 0:02:39]} 13. Bxc6 {[%clk 0:02:09.9]} 13... Bxc6 {[%clk 0:02:38.8]}
14. Nb5 {[%clk 0:02:10.2]} 14... Qe7 {[%clk 0:02:29.5]} 15. a3 {[%clk
0:02:05.4]} 15... a6 {[%clk 0:02:29.8]} 16. N5d4 {[%clk 0:02:01]} 16... Bxa3
{[%clk 0:02:17.5]} 17. Nxc6 {[%clk 0:01:52]} 17... bxc6 {[%clk 0:02:17.4]} 18.
bxa3 {[%clk 0:01:52.4]} 18... Qxa3+ {[%clk 0:02:18.3]} 19. Kb1 {[%clk
0:01:42.3]} 19... Nd5 {[%clk 0:02:18.5]} 20. Qc4 {[%clk 0:01:38.6]} 20... Qd6
{[%clk 0:01:31.5]} 21. Bd4 {[%clk 0:01:29.7]} 21... O-O {[%clk 0:01:21.4]} 22.
Bc5 {[%clk 0:01:29.8]} 22... Qc7 {[%clk 0:01:22]} 23. Bxf8 {[%clk 0:01:28.2]}
23... Rxf8 {[%clk 0:01:22.9]} 24. g3 {[%clk 0:01:27.8]} 24... a5 {[%clk
0:01:23.3]} 25. c3 {[%clk 0:01:19.2]} 25... Rb8 {[%clk 0:01:23.6]} 26. Ka2
{[%clk 0:01:05.5]} 26... a4 {[%clk 0:01:19.2]} 27. Nd4 {[%clk 0:00:59.6]} 27...
c5 {[%clk 0:01:09.1]} 28. Rb1 {[%clk 0:00:53.5]} 28... Ra8 {[%clk 0:01:05.2]}
29. Nf3 {[%clk 0:00:47.2]} 29... h6 {[%clk 0:01:04]} 30. Rhc1 {[%clk 0:00:43.8]}
30... Ne3 {[%clk 0:01:01.8]} 31. Qe4 {[%clk 0:00:38.5]} 31... Nd5 {[%clk
0:00:51.7]} 32. c4 {[%clk 0:00:38.8]} 32... Rd8 {[%clk 0:00:50]} 33. cxd5 {[%clk
0:00:37.9]} 33... exd5 {[%clk 0:00:50.9]} 34. Qe5 {[%clk 0:00:35.7]} 34... Qc8
{[%clk 0:00:51.4]} 35. Rb5 {[%clk 0:00:31.8]} 35... c4 {[%clk 0:00:51.4]} 36.
Rxd5 {[%clk 0:00:30.6]} 36... Re8 {[%clk 0:00:52]} 37. Qd4 {[%clk 0:00:27.2]}
37... Re2+ {[%clk 0:00:50.5]} 38. Ka1 {[%clk 0:00:27.4]} 38... Qb7 {[%clk
0:00:47.4]} 39. Rb1 {[%clk 0:00:22.1]} 39... Qc6 {[%clk 0:00:46.3]} 40. Ne5
{[%clk 0:00:20.4]} 40... Qe6 {[%clk 0:00:42.9]} 41. Qxc4 {[%clk 0:00:17.2]}
41... Rxh2 {[%clk 0:00:40.1]} 42. Rd8+ {[%clk 0:00:16.9]} 42... Kh7 {[%clk
0:00:40.3]} 43. Qxe6 {[%clk 0:00:17]} 43... fxe6 {[%clk 0:00:41.2]} 44. Rbb8
{[%clk 0:00:15.4]} 44... g5 {[%clk 0:00:41.6]} 45. Rb7# {[%clk 0:00:13.9]} 1-0

[Event "*** SCC Grand Prix: Titled Tuesday Blitz"]
[Site "Chess.com"]
[Date "2020.07.07"]
[Round "5"]
[White "timator"]
[Black "ClassyEl"]
[Result "1-0"]
[WhiteElo "2633"]
[BlackElo "2460"]
[TimeControl "180+1"]
[EndTime "10:55:26 PDT"]
[Termination "timator won by resignation"]

1. Nf3 {[%clk 0:03:00]} 1... d5 {[%clk 0:02:59.6]} 2. d4 {[%clk 0:02:59.2]} 2...
Nf6 {[%clk 0:02:59.1]} 3. c4 {[%clk 0:02:58.7]} 3... dxc4 {[%clk 0:02:59.4]} 4.
Nc3 {[%clk 0:02:58.3]} 4... a6 {[%clk 0:02:58.9]} 5. a4 {[%clk 0:02:58.7]} 5...
Nc6 {[%clk 0:02:57.8]} 6. e3 {[%clk 0:02:58.8]} 6... Na5 {[%clk 0:02:57.2]} 7.
g3 {[%clk 0:02:56.6]} 7... c6 {[%clk 0:02:56.7]} 8. Bg2 {[%clk 0:02:56.8]} 8...
Bf5 {[%clk 0:02:53.9]} 9. O-O {[%clk 0:02:56.3]} 9... e6 {[%clk 0:02:52.9]} 10.
Ne5 {[%clk 0:02:55.9]} 10... Bd6 {[%clk 0:02:47.3]} 11. f4 {[%clk 0:02:49.7]}
11... O-O {[%clk 0:02:42.7]} 12. e4 {[%clk 0:02:49.8]} 12... Bg6 {[%clk
0:02:37.3]} 13. Nxg6 {[%clk 0:02:49.9]} 13... hxg6 {[%clk 0:02:37.2]} 14. e5
{[%clk 0:02:50.5]} 14... Bb4 {[%clk 0:02:35.3]} 15. exf6 {[%clk 0:02:49.5]}
15... Nb3 {[%clk 0:02:35.4]} 16. Rb1 {[%clk 0:02:49.8]} 16... Nxd4 {[%clk
0:02:26.1]} 17. Be3 {[%clk 0:02:49.9]} 17... Nf5 {[%clk 0:02:18.5]} 18. fxg7
{[%clk 0:02:30.7]} 18... Kxg7 {[%clk 0:01:59.2]} 19. Bf2 {[%clk 0:02:29.1]}
19... Qa5 {[%clk 0:01:51.1]} 20. Qc2 {[%clk 0:02:23.8]} 20... Rfd8 {[%clk
0:01:50.8]} 21. Rfd1 {[%clk 0:02:23.8]} 21... Bc5 {[%clk 0:01:46.6]} 22. Bxc5
{[%clk 0:01:42.9]} 22... Qxc5+ {[%clk 0:01:45.8]} 23. Qf2 {[%clk 0:01:43.5]}
23... Qb4 {[%clk 0:01:26.5]} 24. g4 {[%clk 0:01:42.8]} 24... Ne7 {[%clk
0:01:26.5]} 25. h4 {[%clk 0:01:34.5]} 25... b5 {[%clk 0:01:22]} 26. h5 {[%clk
0:01:26.1]} 26... gxh5 {[%clk 0:01:21.6]} 27. f5 {[%clk 0:01:25.9]} 27... exf5
{[%clk 0:01:07.7]} 28. gxf5 {[%clk 0:01:22.6]} 28... f6 {[%clk 0:01:00.9]} 29.
Re1 {[%clk 0:01:20.2]} 29... Rd3 {[%clk 0:00:41]} 30. Re6 {[%clk 0:01:05]} 30...
Rxc3 {[%clk 0:00:20.6]} 31. Rbe1 {[%clk 0:01:04.4]} 31... Nd5 {[%clk 0:00:18.6]}
32. bxc3 {[%clk 0:01:03.4]} 32... Qxc3 {[%clk 0:00:19]} 33. Bxd5 {[%clk
0:00:55.5]} 33... cxd5 {[%clk 0:00:19.3]} 34. Re7+ {[%clk 0:00:53.9]} 34... Kh8
{[%clk 0:00:17.1]} 35. Re8+ {[%clk 0:00:54.1]} 35... Rxe8 {[%clk 0:00:17.1]} 36.
Rxe8+ {[%clk 0:00:55]} 36... Kh7 {[%clk 0:00:17.8]} 37. Re7+ {[%clk 0:00:45.2]}
37... Kh8 {[%clk 0:00:18]} 38. Kh2 {[%clk 0:00:40.6]} 38... b4 {[%clk
0:00:14.7]} 39. Qg2 {[%clk 0:00:34.7]} 1-0

[Event "*** SCC Grand Prix: Titled Tuesday Blitz"]
[Site "Chess.com"]
[Date "2020.07.07"]
[Round "5"]
[White "TokChess"]
[Black "Fusikk"]
[Result "1-0"]
[WhiteElo "2417"]
[BlackElo "2544"]
[TimeControl "180+1"]
[EndTime "10:55:26 PDT"]
[Termination "TokChess won by resignation"]

1. Nf3 {[%clk 0:03:00.9]} 1... d5 {[%clk 0:02:59]} 2. g3 {[%clk 0:03:01.4]} 2...
c6 {[%clk 0:02:56.9]} 3. Bg2 {[%clk 0:03:01.7]} 3... Bg4 {[%clk 0:02:56.9]} 4.
O-O {[%clk 0:03:02.2]} 4... Nd7 {[%clk 0:02:55.7]} 5. d4 {[%clk 0:03:00.6]} 5...
e6 {[%clk 0:02:55.4]} 6. Nbd2 {[%clk 0:03:00.6]} 6... Ngf6 {[%clk 0:02:53.8]} 7.
Re1 {[%clk 0:03:00.8]} 7... Be7 {[%clk 0:02:51.5]} 8. e4 {[%clk 0:03:01]} 8...
O-O {[%clk 0:02:51.3]} 9. c3 {[%clk 0:03:00.7]} 9... a5 {[%clk 0:02:50.8]} 10.
a4 {[%clk 0:03:00.3]} 10... Bh5 {[%clk 0:02:45.1]} 11. e5 {[%clk 0:02:57.4]}
11... Ne8 {[%clk 0:02:44.7]} 12. Nb3 {[%clk 0:02:53.4]} 12... c5 {[%clk
0:02:43]} 13. Be3 {[%clk 0:02:53.1]} 13... Qc7 {[%clk 0:02:30.9]} 14. Nc1 {[%clk
0:02:52.7]} 14... Qc6 {[%clk 0:02:26.9]} 15. Nd3 {[%clk 0:02:51.7]} 15... Qb6
{[%clk 0:02:09.4]} 16. Qd2 {[%clk 0:02:44.3]} 16... Bg6 {[%clk 0:01:58]} 17. Nf4
{[%clk 0:02:43.1]} 17... Be4 {[%clk 0:01:57.9]} 18. h4 {[%clk 0:02:37.4]} 18...
Nc7 {[%clk 0:01:53.8]} 19. Ng5 {[%clk 0:02:36.5]} 19... Bxg2 {[%clk 0:01:53.5]}
20. Kxg2 {[%clk 0:02:37.2]} 20... h6 {[%clk 0:01:53.7]} 21. Nf3 {[%clk
0:02:29.7]} 21... cxd4 {[%clk 0:01:53.6]} 22. Bxd4 {[%clk 0:02:29.3]} 22... Bc5
{[%clk 0:01:51.3]} 23. Nh5 {[%clk 0:02:25.9]} 23... Na6 {[%clk 0:01:31.5]} 24.
Qf4 {[%clk 0:02:20]} 24... Kh7 {[%clk 0:01:21.8]} 25. Qg4 {[%clk 0:02:08.3]}
25... g6 {[%clk 0:01:19.2]} 26. Nf4 {[%clk 0:01:56]} 26... Rg8 {[%clk
0:01:00.5]} 27. Rh1 {[%clk 0:01:55.6]} 27... Bxd4 {[%clk 0:00:43]} 28. cxd4
{[%clk 0:01:53.4]} 28... Nb4 {[%clk 0:00:43.1]} 29. Rac1 {[%clk 0:01:41.2]}
29... Rac8 {[%clk 0:00:27.1]} 30. Rxc8 {[%clk 0:01:35.6]} 30... Rxc8 {[%clk
0:00:28]} 31. h5 {[%clk 0:01:33.7]} 31... g5 {[%clk 0:00:28.3]} 32. Nxg5+ {[%clk
0:01:21]} 32... hxg5 {[%clk 0:00:29.2]} 33. Qxg5 {[%clk 0:01:21.4]} 33... Qd8
{[%clk 0:00:29.6]} 34. Qg4 {[%clk 0:01:02.6]} 34... Rc2 {[%clk 0:00:26.9]} 35.
Nxe6 {[%clk 0:00:53.1]} 35... fxe6 {[%clk 0:00:21]} 36. Qg6+ {[%clk 0:00:53.1]}
36... Kh8 {[%clk 0:00:20.9]} 37. Qh6+ {[%clk 0:00:53.3]} 37... Kg8 {[%clk
0:00:21.2]} 38. Qxe6+ {[%clk 0:00:53.4]} 38... Kf8 {[%clk 0:00:20.3]} 39. Qf5+
{[%clk 0:00:50.9]} 39... Ke7 {[%clk 0:00:19.7]} 40. Qg5+ {[%clk 0:00:47.2]}
40... Ke8 {[%clk 0:00:19.9]} 41. Qg6+ {[%clk 0:00:46.9]} 41... Kf8 {[%clk
0:00:18.9]} 42. Rh4 {[%clk 0:00:45.5]} 42... Qe7 {[%clk 0:00:10.1]} 43. Rf4+
{[%clk 0:00:43.9]} 1-0

[Event "*** SCC Grand Prix: Titled Tuesday Blitz"]
[Site "Chess.com"]
[Date "2020.07.07"]
[Round "5"]
[White "AungTZ"]
[Black "PowerThinking2650"]
[Result "0-1"]
[WhiteElo "2114"]
[BlackElo "2319"]
[TimeControl "180+1"]
[EndTime "10:55:26 PDT"]
[Termination "PowerThinking2650 won by checkmate"]

1. e4 {[%clk 0:02:22.7]} 1... e5 {[%clk 0:02:59.3]} 2. Nf3 {[%clk 0:02:22.2]}
2... Nc6 {[%clk 0:02:59.3]} 3. d4 {[%clk 0:02:22.1]} 3... exd4 {[%clk
0:02:59.3]} 4. Nxd4 {[%clk 0:02:13.6]} 4... Nf6 {[%clk 0:02:58.8]} 5. Nc3 {[%clk
0:02:13.2]} 5... Bb4 {[%clk 0:02:57.6]} 6. Nxc6 {[%clk 0:02:12.1]} 6... bxc6
{[%clk 0:02:58.5]} 7. Bd3 {[%clk 0:02:12.5]} 7... O-O {[%clk 0:02:56.5]} 8. O-O
{[%clk 0:02:11.8]} 8... d5 {[%clk 0:02:57]} 9. exd5 {[%clk 0:02:11.7]} 9... cxd5
{[%clk 0:02:57.9]} 10. Bg5 {[%clk 0:02:10.9]} 10... c6 {[%clk 0:02:58]} 11. h3
{[%clk 0:02:10.9]} 11... h6 {[%clk 0:02:57.7]} 12. Bh4 {[%clk 0:02:10]} 12...
Bd6 {[%clk 0:02:51.8]} 13. Ne2 {[%clk 0:02:04.4]} 13... Rb8 {[%clk 0:02:49.8]}
14. b3 {[%clk 0:02:03.5]} 14... Re8 {[%clk 0:02:49.3]} 15. Bg3 {[%clk
0:01:56.1]} 15... Ne4 {[%clk 0:02:39.2]} 16. Bxe4 {[%clk 0:01:41.5]} 16... Rxe4
{[%clk 0:02:36]} 17. Bxd6 {[%clk 0:01:39.4]} 17... Qxd6 {[%clk 0:02:35.4]} 18.
Nc3 {[%clk 0:01:35]} 18... Re8 {[%clk 0:02:24.2]} 19. Qd4 {[%clk 0:01:29.9]}
19... Rb4 {[%clk 0:02:11.1]} 20. Qxa7 {[%clk 0:01:16.4]} 20... Bxh3 {[%clk
0:01:45.9]} 21. gxh3 {[%clk 0:01:08.3]} 21... Re6 {[%clk 0:01:15.7]} 22. Qa8+
{[%clk 0:00:47]} 22... Kh7 {[%clk 0:01:08.5]} 23. Qc8 {[%clk 0:00:36.5]} 23...
Rg6+ {[%clk 0:00:50.2]} 24. Kh1 {[%clk 0:00:34.5]} 24... Qf6 {[%clk 0:00:47.8]}
25. f3 {[%clk 0:00:19.6]} 25... Qxc3 {[%clk 0:00:32.9]} 26. Qf5 {[%clk 0:00:16]}
26... Qd2 {[%clk 0:00:17.2]} 27. Qd3 {[%clk 0:00:09.3]} 27... Qg2# {[%clk
0:00:13]} 0-1

[Event "*** SCC Grand Prix: Titled Tuesday Blitz"]
[Site "Chess.com"]
[Date "2020.07.07"]
[Round "5"]
[White "Marty435"]
[Black "kuban1991"]
[Result "0-1"]
[WhiteElo "2512"]
[BlackElo "2754"]
[TimeControl "180+1"]
[EndTime "10:55:27 PDT"]
[Termination "kuban1991 won on time"]

1. e4 {[%clk 0:03:00.9]} 1... e6 {[%clk 0:02:59.5]} 2. d4 {[%clk 0:03:01]} 2...
d5 {[%clk 0:03:00.3]} 3. Nc3 {[%clk 0:03:01.6]} 3... Bb4 {[%clk 0:02:59.9]} 4.
e5 {[%clk 0:03:02.2]} 4... c5 {[%clk 0:02:59.8]} 5. a3 {[%clk 0:03:02.7]} 5...
Bxc3+ {[%clk 0:03:00.2]} 6. bxc3 {[%clk 0:03:03.6]} 6... Nc6 {[%clk 0:03:01.1]}
7. Qg4 {[%clk 0:03:00.7]} 7... g6 {[%clk 0:03:01.2]} 8. h4 {[%clk 0:02:55.1]}
8... h6 {[%clk 0:03:00.9]} 9. Bd3 {[%clk 0:02:46.4]} 9... c4 {[%clk 0:02:55.7]}
10. Bxg6 {[%clk 0:02:44.7]} 10... fxg6 {[%clk 0:02:56.6]} 11. Qxg6+ {[%clk
0:02:45.6]} 11... Kd7 {[%clk 0:02:54.6]} 12. Ne2 {[%clk 0:02:35.8]} 12... Nge7
{[%clk 0:02:54.1]} 13. Qg4 {[%clk 0:02:36.1]} 13... Qg8 {[%clk 0:02:51.7]} 14.
Qh3 {[%clk 0:02:35.6]} 14... Kc7 {[%clk 0:02:50.9]} 15. a4 {[%clk 0:02:33.4]}
15... Bd7 {[%clk 0:02:47.6]} 16. Ba3 {[%clk 0:02:33.2]} 16... Rf8 {[%clk
0:02:47.4]} 17. Bd6+ {[%clk 0:02:33.1]} 17... Kc8 {[%clk 0:02:46.9]} 18. a5
{[%clk 0:02:33.4]} 18... Qg6 {[%clk 0:02:42.6]} 19. Ra2 {[%clk 0:02:19.7]} 19...
Rhg8 {[%clk 0:02:40.6]} 20. O-O {[%clk 0:02:15.4]} 20... h5 {[%clk 0:02:37.6]}
21. g3 {[%clk 0:02:10.5]} 21... Rf7 {[%clk 0:02:34.2]} 22. Bc5 {[%clk 0:02:07]}
22... Qe4 {[%clk 0:02:26.7]} 23. Re1 {[%clk 0:02:04.7]} 23... Qf3 {[%clk
0:02:26.2]} 24. Qg2 {[%clk 0:02:02.7]} 24... Be8 {[%clk 0:02:18]} 25. Qxf3
{[%clk 0:01:50.1]} 25... Rxf3 {[%clk 0:02:18.9]} 26. Kg2 {[%clk 0:01:51]} 26...
Rf5 {[%clk 0:02:14.7]} 27. Rb1 {[%clk 0:01:46.5]} 27... Ng6 {[%clk 0:02:02]} 28.
Kf1 {[%clk 0:01:46.4]} 28... Rg7 {[%clk 0:02:00.8]} 29. Ke1 {[%clk 0:01:38.1]}
29... Rgf7 {[%clk 0:01:57.8]} 30. f4 {[%clk 0:01:36.7]} 30... Rd7 {[%clk
0:01:57.2]} 31. Kd2 {[%clk 0:01:32.4]} 31... Nge7 {[%clk 0:01:57]} 32. Ng1
{[%clk 0:01:29.1]} 32... Bg6 {[%clk 0:01:56.9]} 33. Nf3 {[%clk 0:01:27.7]} 33...
Rf8 {[%clk 0:01:54.6]} 34. Ng5 {[%clk 0:01:28.1]} 34... Bf5 {[%clk 0:01:54.7]}
35. Ke3 {[%clk 0:01:20.6]} 35... Rc7 {[%clk 0:01:43.8]} 36. Bd6 {[%clk
0:01:11.6]} 36... Rg8 {[%clk 0:01:42.4]} 37. Kf2 {[%clk 0:00:54.8]} 37... Rd7
{[%clk 0:01:40.2]} 38. Bc5 {[%clk 0:00:53]} 38... Rg7 {[%clk 0:01:37.8]} 39.
Rbb2 {[%clk 0:00:50.5]} 39... Kb8 {[%clk 0:01:31.4]} 40. Ra1 {[%clk 0:00:45.8]}
40... Nc8 {[%clk 0:01:29.3]} 41. Nf3 {[%clk 0:00:36.7]} 41... a6 {[%clk
0:01:23.6]} 42. Ng5 {[%clk 0:00:36.1]} 42... N8a7 {[%clk 0:01:23.3]} 43. Bd6+
{[%clk 0:00:34.3]} 43... Ka8 {[%clk 0:01:20.2]} 44. Bc5 {[%clk 0:00:34.3]} 44...
Nb5 {[%clk 0:01:20.2]} 45. Bf8 {[%clk 0:00:14.2]} 45... Nxc3 {[%clk 0:01:16]}
46. Bxg7 {[%clk 0:00:13.8]} 46... Rxg7 {[%clk 0:01:16.9]} 47. Ke3 {[%clk
0:00:10.6]} 47... Nb5 {[%clk 0:01:15]} 48. Rd1 {[%clk 0:00:01.9]} 48... Kb8
{[%clk 0:01:11.1]} 0-1

[Event "*** SCC Grand Prix: Titled Tuesday Blitz"]
[Site "Chess.com"]
[Date "2020.07.07"]
[Round "5"]
[White "crazychessbr"]
[Black "Arathorn2"]
[Result "0-1"]
[WhiteElo "2067"]
[BlackElo "2308"]
[TimeControl "180+1"]
[EndTime "10:55:27 PDT"]
[Termination "Arathorn2 won on time"]

1. e4 {[%clk 0:03:00.9]} 1... c5 {[%clk 0:02:59.4]} 2. d3 {[%clk 0:03:00.8]}
2... Nc6 {[%clk 0:02:58.8]} 3. g3 {[%clk 0:03:01.1]} 3... g6 {[%clk 0:02:59.4]}
4. Bg2 {[%clk 0:03:01.6]} 4... Bg7 {[%clk 0:03:00.2]} 5. f4 {[%clk 0:03:02.3]}
5... e6 {[%clk 0:03:00.9]} 6. Nf3 {[%clk 0:03:02.9]} 6... Nge7 {[%clk
0:03:01.2]} 7. O-O {[%clk 0:03:02.7]} 7... O-O {[%clk 0:03:01.8]} 8. c3 {[%clk
0:03:03.2]} 8... d5 {[%clk 0:03:01.1]} 9. Be3 {[%clk 0:02:59.9]} 9... d4 {[%clk
0:02:50.5]} 10. cxd4 {[%clk 0:02:58.3]} 10... Nxd4 {[%clk 0:02:51.4]} 11. Nc3
{[%clk 0:02:45.3]} 11... b6 {[%clk 0:02:45.9]} 12. e5 {[%clk 0:02:27.6]} 12...
Nef5 {[%clk 0:02:27.3]} 13. Bf2 {[%clk 0:02:27.1]} 13... Rb8 {[%clk 0:02:25.6]}
14. g4 {[%clk 0:02:23]} 14... Nxf3+ {[%clk 0:02:24.9]} 15. Qxf3 {[%clk
0:02:16.9]} 15... Nh4 {[%clk 0:02:22.8]} 16. Bxh4 {[%clk 0:02:09]} 16... Qxh4
{[%clk 0:02:23.7]} 17. Ne4 {[%clk 0:01:59.6]} 17... Bb7 {[%clk 0:02:07.6]} 18.
Qe2 {[%clk 0:01:58.5]} 18... h6 {[%clk 0:01:44.4]} 19. Nd6 {[%clk 0:01:39.9]}
19... Bxg2 {[%clk 0:01:42.8]} 20. Qxg2 {[%clk 0:01:40]} 20... g5 {[%clk
0:01:37.1]} 21. f5 {[%clk 0:01:09.1]} 21... Bxe5 {[%clk 0:01:35.1]} 22. Ne4
{[%clk 0:01:08.5]} 22... exf5 {[%clk 0:01:28.2]} 23. Rxf5 {[%clk 0:01:06.2]}
23... f6 {[%clk 0:01:21.9]} 24. Raf1 {[%clk 0:01:03.5]} 24... Kg7 {[%clk
0:01:22.2]} 25. R5f3 {[%clk 0:00:20.5]} 25... h5 {[%clk 0:01:19.3]} 26. gxh5
{[%clk 0:00:20.9]} 26... Qxh5 {[%clk 0:01:15.6]} 27. Rh3 {[%clk 0:00:18.5]}
27... Qg6 {[%clk 0:01:14.2]} 28. Ng3 {[%clk 0:00:08.4]} 28... Bxg3 {[%clk
0:00:51.5]} 29. Rxg3 {[%clk 0:00:09.3]} 29... Rbd8 {[%clk 0:00:47.2]} 30. h4
{[%clk 0:00:08.8]} 30... Rxd3 {[%clk 0:00:44.3]} 31. hxg5 {[%clk 0:00:04.8]}
31... Rxg3 {[%clk 0:00:44.1]} 32. Qxg3 {[%clk 0:00:04]} 32... Qxg5 {[%clk
0:00:43]} 33. Qxg5+ {[%clk 0:00:04.1]} 33... fxg5 {[%clk 0:00:43.8]} 34. Rd1
{[%clk 0:00:04.8]} 34... Rf7 {[%clk 0:00:43.5]} 35. Rd5 {[%clk 0:00:04.5]} 35...
Kg6 {[%clk 0:00:43.5]} 36. Kg2 {[%clk 0:00:03.2]} 36... Re7 {[%clk 0:00:38]} 37.
Kf3 {[%clk 0:00:02.6]} 37... Kh5 {[%clk 0:00:36.9]} 0-1

[Event "*** SCC Grand Prix: Titled Tuesday Blitz"]
[Site "Chess.com"]
[Date "2020.07.07"]
[Round "5"]
[White "Nara_Kh"]
[Black "Ariadna_Atreides"]
[Result "1-0"]
[WhiteElo "2290"]
[BlackElo "2061"]
[TimeControl "180+1"]
[EndTime "10:55:28 PDT"]
[Termination "Nara_Kh won by checkmate"]

1. e4 {[%clk 0:03:00.9]} 1... c5 {[%clk 0:02:59.4]} 2. Nf3 {[%clk 0:03:00.3]}
2... d6 {[%clk 0:02:59.4]} 3. Bb5+ {[%clk 0:02:59.2]} 3... Bd7 {[%clk
0:02:58.5]} 4. c4 {[%clk 0:02:57.7]} 4... e5 {[%clk 0:02:52.1]} 5. Nc3 {[%clk
0:02:56]} 5... Nc6 {[%clk 0:02:46.5]} 6. O-O {[%clk 0:02:55.8]} 6... a6 {[%clk
0:02:42.6]} 7. Ba4 {[%clk 0:02:54.4]} 7... Nge7 {[%clk 0:02:36.7]} 8. d3 {[%clk
0:02:53.8]} 8... Nd4 {[%clk 0:02:31.5]} 9. Bxd7+ {[%clk 0:02:45.2]} 9... Qxd7
{[%clk 0:02:30.4]} 10. Nxd4 {[%clk 0:02:45.3]} 10... exd4 {[%clk 0:02:23]} 11.
Ne2 {[%clk 0:02:41.1]} 11... g6 {[%clk 0:02:20.4]} 12. b4 {[%clk 0:02:17.9]}
12... Bg7 {[%clk 0:02:16.4]} 13. a3 {[%clk 0:02:14.8]} 13... O-O {[%clk
0:02:03.6]} 14. Bg5 {[%clk 0:02:06.4]} 14... h6 {[%clk 0:02:00.7]} 15. Bxe7
{[%clk 0:02:06.2]} 15... Qxe7 {[%clk 0:01:59.8]} 16. Nf4 {[%clk 0:02:07.1]}
16... f5 {[%clk 0:01:46.2]} 17. Nxg6 {[%clk 0:02:05.8]} 17... Qf7 {[%clk
0:01:44.8]} 18. Nxf8 {[%clk 0:02:02.7]} 18... Rxf8 {[%clk 0:01:45.3]} 19. exf5
{[%clk 0:02:00.3]} 19... Qxf5 {[%clk 0:01:44.8]} 20. Qe2 {[%clk 0:01:57.4]}
20... Be5 {[%clk 0:01:41.5]} 21. g3 {[%clk 0:01:47.3]} 21... b6 {[%clk
0:01:40.9]} 22. Kg2 {[%clk 0:01:40.7]} 22... h5 {[%clk 0:01:31.2]} 23. f4 {[%clk
0:01:39.4]} 23... Bf6 {[%clk 0:01:30.6]} 24. Rae1 {[%clk 0:01:38.9]} 24... Kg7
{[%clk 0:01:26]} 25. Qe4 {[%clk 0:01:33.5]} 25... Qg4 {[%clk 0:01:24.6]} 26. Qe6
{[%clk 0:01:30.1]} 26... Qg6 {[%clk 0:01:14.4]} 27. Re4 {[%clk 0:01:04.5]} 27...
h4 {[%clk 0:01:05.6]} 28. Qxd6 {[%clk 0:00:51.1]} 28... h3+ {[%clk 0:00:59.6]}
29. Kh1 {[%clk 0:00:41.4]} 29... Qh5 {[%clk 0:00:48]} 30. g4 {[%clk 0:00:31.2]}
30... Qh4 {[%clk 0:00:37.6]} 31. f5 {[%clk 0:00:29.2]} 31... cxb4 {[%clk
0:00:15.4]} 32. axb4 {[%clk 0:00:28.4]} 32... a5 {[%clk 0:00:16.3]} 33. g5
{[%clk 0:00:28.5]} 33... Bxg5 {[%clk 0:00:14.2]} 34. Rxh4 {[%clk 0:00:28.3]}
34... Bxh4 {[%clk 0:00:12.4]} 35. Rg1+ {[%clk 0:00:28.2]} 35... Kh8 {[%clk
0:00:11.1]} 36. Qh6# {[%clk 0:00:27.6]} 1-0

[Event "*** SCC Grand Prix: Titled Tuesday Blitz"]
[Site "Chess.com"]
[Date "2020.07.07"]
[Round "5"]
[White "VincentKeymer"]
[Black "Isajevsky_Anton"]
[Result "1-0"]
[WhiteElo "2885"]
[BlackElo "2547"]
[TimeControl "180+1"]
[EndTime "10:55:29 PDT"]
[Termination "VincentKeymer won by checkmate"]

1. Nf3 {[%clk 0:03:00.9]} 1... d5 {[%clk 0:02:55.4]} 2. e3 {[%clk 0:03:00.7]}
2... Nf6 {[%clk 0:02:54.9]} 3. c4 {[%clk 0:03:00.5]} 3... e6 {[%clk 0:02:55]} 4.
Nc3 {[%clk 0:03:01]} 4... Be7 {[%clk 0:02:45.5]} 5. b3 {[%clk 0:03:00.5]} 5...
O-O {[%clk 0:02:45.3]} 6. Bb2 {[%clk 0:03:00.7]} 6... b6 {[%clk 0:02:34.7]} 7.
cxd5 {[%clk 0:02:57.6]} 7... exd5 {[%clk 0:02:34.8]} 8. d4 {[%clk 0:02:57.1]}
8... Bb7 {[%clk 0:02:34.5]} 9. Bd3 {[%clk 0:02:56.1]} 9... Nbd7 {[%clk
0:02:32.8]} 10. O-O {[%clk 0:02:54.7]} 10... a6 {[%clk 0:02:33.2]} 11. Ne2
{[%clk 0:02:54.3]} 11... Re8 {[%clk 0:02:27.9]} 12. Ng3 {[%clk 0:02:54.4]} 12...
g6 {[%clk 0:02:26.5]} 13. Ne5 {[%clk 0:02:53.3]} 13... c5 {[%clk 0:01:59]} 14.
Qf3 {[%clk 0:02:25.2]} 14... Bd6 {[%clk 0:01:40]} 15. Nxd7 {[%clk 0:02:17.5]}
15... Nxd7 {[%clk 0:01:39.7]} 16. dxc5 {[%clk 0:02:11]} 16... Nxc5 {[%clk
0:01:07.2]} 17. Nf5 {[%clk 0:01:22.6]} 17... gxf5 {[%clk 0:00:30.9]} 18. Qxf5
{[%clk 0:01:16.3]} 18... Nxd3 {[%clk 0:00:29.9]} 19. Qg4+ {[%clk 0:01:15]} 19...
Kf8 {[%clk 0:00:28.8]} 20. Qg7+ {[%clk 0:01:13.9]} 20... Ke7 {[%clk 0:00:29.1]}
21. Bf6+ {[%clk 0:01:14.5]} 21... Ke6 {[%clk 0:00:28.4]} 22. Bxd8 {[%clk
0:01:10.7]} 22... Raxd8 {[%clk 0:00:29.3]} 23. Qxh7 {[%clk 0:01:01]} 23... Ne5
{[%clk 0:00:27.1]} 24. f4 {[%clk 0:00:56.8]} 24... Rh8 {[%clk 0:00:21.6]} 25.
Qc2 {[%clk 0:00:54.9]} 25... Ng4 {[%clk 0:00:18.9]} 26. h3 {[%clk 0:00:27.8]}
26... Nxe3 {[%clk 0:00:18.5]} 27. Rae1 {[%clk 0:00:27.3]} 27... d4 {[%clk
0:00:18.5]} 28. Qc4+ {[%clk 0:00:25.1]} 28... Kf5 {[%clk 0:00:14.2]} 29. Qxf7+
{[%clk 0:00:22.3]} 29... Ke4 {[%clk 0:00:13.4]} 30. Qe6+ {[%clk 0:00:22]} 30...
Kd3 {[%clk 0:00:13.1]} 31. Rd1+ {[%clk 0:00:20]} 31... Nxd1 {[%clk 0:00:12.9]}
32. Rxd1+ {[%clk 0:00:20.9]} 32... Kc2 {[%clk 0:00:12.4]} 33. Qe2+ {[%clk
0:00:21]} 33... Kc3 {[%clk 0:00:12.6]} 34. Qc4+ {[%clk 0:00:21.2]} 34... Kb2
{[%clk 0:00:12.8]} 35. Rd2+ {[%clk 0:00:21.5]} 35... Kb1 {[%clk 0:00:11.8]} 36.
Qc2+ {[%clk 0:00:21.5]} 36... Ka1 {[%clk 0:00:12.3]} 37. Qc1# {[%clk 0:00:22.4]}
1-0